fUST/lending_fUST_20250124
["ID","MTS","AMOUNT","RATE_DAILY","PERIOD"]
[350148834,1737654437337,-500.0,0.00019178,2]
[350148835,1737654437362,-500.0,0.00019178,2]
[350148836,1737654437386,-203.27018988,0.00019178,2]
[350148837,1737654437410,-500.0,0.00019178,2]
[350148838,1737654437434,-500.0,0.00019178,2]
[350148839,1737654437459,-500.0,0.00019178,2]
[350148840,1737654437484,-500.0,0.00019178,2]
[350148841,1737654437510,-560.24,0.00019178,2]
[350148842,1737654437537,-500.0,0.00019178,2]
[350148843,1737654437563,-500.0,0.00019314,3]
[350148844,1737654437587,-500.0,0.00019314,3]
[350148845,1737654437613,-500.0,0.00019314,3]
[350148846,1737654437638,-500.0,0.00019314,3]
[350148847,1737654437662,-500.0,0.00019314,3]
[350148848,1737654437688,-500.0,0.00019314,3]
[350148849,1737654437714,-618.76,0.00019314,3]
[350148850,1737654437740,-500.0,0.00019314,3]
[350148851,1737654437764,-500.0,0.00019314,3]
[350148852,1737654437788,-500.0,0.00019314,3]
[350148853,1737654437815,-500.0,0.00019314,3]
[350148854,1737654437840,-500.0,0.00019314,3]
[350148855,1737654437869,-500.0,0.00019314,3]
[350148856,1737654437903,-500.0,0.00019314,3]
[350148857,1737654437932,-500.0,0.00019314,3]
[350148858,1737654437957,-500.0,0.00019314,3]
[350148859,1737654437983,-288.05,0.00019315,3]
[350148860,1737654438010,-500.0,0.00019315,3]
[350148861,1737654438035,-226.778783,0.00019425,2]
[350148862,1737654438063,-500.0,0.00019451,3]
[350148863,1737654438089,-500.0,0.00019451,3]
[350148864,1737654438113,-500.0,0.00019451,3]
[350148865,1737654438137,-500.0,0.00019451,3]
[350148866,1737654438161,-500.0,0.00019451,3]
[350148867,1737654438190,-500.0,0.00019452,3]
[350148868,1737654438216,-500.0,0.00019588,3]
[350148869,1737654438245,-500.0,0.00019588,3]
[350148870,1737654438272,-500.0,0.00019588,3]
[350148871,1737654438295,-500.0,0.00019588,3]
[350148872,1737654438323,-500.0,0.00019588,3]
[350148873,1737654438350,-500.0,0.00019589,3]
[350148874,1737654438375,-266.654,0.00019667,2]
[350148875,1737654438403,-500.0,0.00019724,3]
[350148876,1737654438429,-500.0,0.00019724,3]
[350148877,1737654438454,-1063.56,0.00019725,3]
[350148878,1737654438478,-500.0,0.00019725,3]
[350148879,1737654438504,-500.0,0.00019725,3]
[350148880,1737654438530,-500.0,0.00019725,3]
[350148881,1737654438558,-183.08,0.00019725,3]
[350148882,1737654438584,-500.0,0.00019725,3]
[350148883,1737654438612,-500.0,0.00019725,3]
[350148884,1737654438638,-500.0,0.00019725,3]
[350148885,1737654438663,-500.0,0.00019726,3]
[350148886,1737654438687,-239.45131062,0.00019765,2]
[350148887,1737654438711,-311.26878694,0.000198,2]
[350148888,1737654438736,-500.0,0.00019861,3]
[350148889,1737654438760,-551.87886356,0.00019862,3]
[350148902,1737654633457,-207.51252463,0.000189,2]
[350148903,1737654633466,-1119.16,0.00019314,3]
[350148904,1737654633476,-500.0,0.00019314,3]
[350148905,1737654633485,-500.0,0.00019314,3]
[350148906,1737654633494,-1119.16,0.00019451,3]
[350148907,1737654633504,-500.0,0.00019451,3]
[350148908,1737654633513,-946.20536529,0.00019588,3]
[350148909,1737654633525,-172.95463471,0.00019588,3]
[350148910,1737654633534,-500.0,0.00019588,3]
[350148911,1737654633543,-300.0,0.00019723,2]
[350148912,1737654633553,-500.0,0.00019724,3]
[350148913,1737654633562,-500.0,0.00019724,3]
[350148914,1737654633572,-500.0,0.00019724,3]
[350148915,1737654633582,-1119.16,0.00019725,3]
[350148916,1737654633591,-500.0,0.00019725,3]
[350148917,1737654633600,-500.0,0.00019725,3]
[350148918,1737654633610,-500.0,0.00019861,3]
[350148919,1737654633620,-500.0,0.00019861,3]
[350148920,1737654633629,-500.0,0.00019861,3]
[350148921,1737654633639,-1119.16,0.00019862,3]
[350148922,1737654633648,-500.0,0.00019862,3]
[350148923,1737654633657,-500.0,0.00019862,3]
[350148924,1737654633666,-635.78,0.000199,2]
[350148925,1737654633675,-500.0,0.00019998,3]
[350148926,1737654633685,-500.0,0.00019998,3]
[350148927,1737654633696,-500.0,0.00019998,3]
[350148928,1737654633709,-500.0,0.00019998,3]
[350148929,1737654633719,-165.65,0.00019999,2]
[350148930,1737654633729,-1119.16,0.00019999,3]
[350148931,1737654633738,-500.0,0.00019999,3]
[350148932,1737654633748,-500.0,0.00019999,3]
[350148933,1737654633757,-160.0,0.0002,2]
[350148934,1737654633766,-160.0,0.0002,3]
[350148935,1737654633776,-500.0,0.00020135,3]
[350148936,1737654633785,-500.0,0.00020135,3]
[350148937,1737654633795,-500.0,0.00020135,3]
[350148938,1737654633804,-500.0,0.00020135,3]
[350148939,1737654633813,-1119.16,0.00020136,3]
[350148940,1737654633823,-500.0,0.00020136,3]
[350148941,1737654633832,-500.0,0.00020136,3]
[350148942,1737654633841,-500.0,0.00020272,3]
[350148943,1737654633851,-500.0,0.00020272,3]
[350148944,1737654633860,-500.0,0.00020272,3]
[350148945,1737654633870,-500.0,0.00020272,3]
[350148946,1737654633879,-1119.16,0.00020273,3]
[350148947,1737654633889,-500.0,0.00020273,3]
[350148948,1737654633903,-500.0,0.00020273,3]
[350148949,1737654633912,-500.0,0.00020409,3]
[350148950,1737654633922,-500.0,0.00020409,3]
[350148951,1737654633932,-500.0,0.00020409,3]
[350148952,1737654633943,-1119.16,0.0002041,3]
[350148953,1737654633953,-500.0,0.0002041,3]
[350148954,1737654633963,-500.0,0.0002041,3]
[350148955,1737654633974,-179.588483,0.00020447,2]
[350148956,1737654633984,-400.0,0.00020447,2]
[350148957,1737654633996,-500.0,0.00020546,3]
[350148958,1737654634006,-500.0,0.00020546,3]
[350148959,1737654634016,-596.38,0.00020546,3]
[350148960,1737654634025,-1119.16,0.00020547,3]
[350148961,1737654634035,-500.0,0.00020547,3]
[350148962,1737654634045,-500.0,0.00020547,3]
[350148963,1737654634054,-508.21601976,0.00020683,3]
[350148964,1737654634064,-500.0,0.00020683,3]
[350148965,1737654634074,-1119.16,0.00020684,3]
[350148966,1737654634084,-160.0,0.00020684,3]
[350148967,1737654634093,-500.0,0.00020684,3]
[350148968,1737654634103,-500.0,0.00020684,3]
[350148969,1737654634113,-421.28,0.0002082,3]
[350148970,1737654634123,-1119.16,0.00020821,3]
[350148971,1737654634132,-500.0,0.00020821,3]
[350148972,1737654634143,-500.0,0.00020821,3]
[350148973,1737654634153,-179.58848296,0.00020938,2]
[350148974,1737654634163,-1119.16,0.00020958,3]
[350148975,1737654634173,-500.0,0.00020958,3]
[350148976,1737654634183,-364.50434597,0.00020958,3]
[350148977,1737654634196,-135.49565403,0.00020958,3]
[350148978,1737654634207,-1119.16,0.00021095,3]
[350148979,1737654634216,-500.0,0.00021095,3]
[350148980,1737654634226,-500.0,0.00021095,3]
[350148981,1737654634236,-1119.16,0.00021232,3]
[350148982,1737654634245,-500.0,0.00021232,3]
[350148983,1737654634255,-263.13,0.00021232,3]
[350148984,1737654634265,-1119.16,0.00021369,3]
[350148985,1737654634274,-500.0,0.00021369,3]
[350148986,1737654634284,-179.58848296,0.00021429,2]
[350148987,1737654634294,-420.0,0.00021482,2]
[350148988,1737654634303,-1119.16,0.00021506,3]
[350148989,1737654634313,-500.0,0.00021506,3]
[350148990,1737654634323,-1144.78644947,0.00021603,2]
[350148991,1737654634332,-1119.16,0.00021643,3]
[350148992,1737654634342,-500.0,0.00021643,3]
[350148993,1737654634352,-1119.16,0.0002178,3]
[350148994,1737654634361,-500.0,0.0002178,3]
[350148995,1737654634371,-172.83458279,0.00021799,2]
[350148996,1737654634382,-500.0,0.00021898,3]
[350148997,1737654634392,-500.0,0.00021898,3]
[350148998,1737654634402,-500.0,0.00021898,3]
[350148999,1737654634412,-502.54391737,0.00021899,2]
[350149000,1737654634422,-644.56,0.00021899,3]
[350149001,1737654634432,-500.0,0.00021899,3]
[350149002,1737654634442,-299.72,0.00021899,3]
[350149003,1737654634452,-500.0,0.00021899,3]
[350149004,1737654634464,-500.0,0.00021899,3]
[350149005,1737654634474,-500.0,0.00021899,3]
[350149006,1737654634483,-500.0,0.00021899,3]
[350149007,1737654634493,-500.0,0.00021899,3]
[350149008,1737654634503,-500.0,0.00021899,3]
[350149009,1737654634512,-500.0,0.00021899,3]
[350149010,1737654634522,-500.0,0.00021899,3]
[350149011,1737654634531,-500.0,0.00021899,3]
[350149012,1737654634540,-500.0,0.00021899,3]
[350149013,1737654634550,-500.0,0.00021899,3]
[350149014,1737654634559,-500.0,0.00021899,3]
[350149015,1737654634569,-500.0,0.00021899,3]
[350149016,1737654634578,-500.0,0.00021899,3]
[350149017,1737654634588,-500.0,0.00021899,3]
[350149018,1737654634597,-500.0,0.00021899,3]
[350149019,1737654634606,-500.0,0.00021899,3]
[350149020,1737654634615,-500.0,0.00021899,3]
[350149021,1737654634625,-210.88,0.00021899,3]
[350149022,1737654634634,-515.71362275,0.00021899,2]
[350149023,1737654634644,-311.70032526,0.00021899,2]
[350149024,1737654634653,-383.29240517,0.00021899,2]
[350149025,1737654634662,-500.14076118,0.00021899,2]
[350149026,1737654634671,-500.0,0.00021899,2]
[350149027,1737654634681,-500.0,0.00021899,2]
[350149028,1737654634690,-500.0,0.00021899,2]
[350149029,1737654634700,-500.0,0.00021899,2]
[350149030,1737654634712,-500.0,0.00021899,2]
[350149031,1737654634721,-500.0,0.00021899,2]
[350149032,1737654634731,-500.0,0.00021899,2]
[350149033,1737654634740,-403.77001335,0.00021899,2]
[350149034,1737654634750,-172.22530795,0.00021899,2]
[350149035,1737654634759,-500.0,0.00021899,2]
[350149036,1737654634768,-300.0,0.00021899,2]
[350149037,1737654634778,-500.0,0.00021899,2]
[350149038,1737654634789,-214.14929462,0.00021899,2]
[350149039,1737654634798,-500.0,0.00021899,2]
[350149040,1737654634808,-195.59588473,0.00021899,2]
[350149041,1737654634817,-300.0,0.00021899,2]
[350149042,1737654634826,-4916.28128036,0.000219,2]
[350149043,1737654634838,-4591.49426931,0.000219,2]
[350149300,1737654640423,-500.0,0.00019724,3]
[350149302,1737654640433,-500.0,0.00019861,3]
[350149304,1737654640443,-500.0,0.00019998,3]
[350149306,1737654640452,-500.0,0.00020135,3]
[350149308,1737654640464,-500.0,0.00020272,3]
[350149310,1737654640473,-500.0,0.00020409,3]
[350149312,1737654640483,-500.0,0.00020546,3]
[350149314,1737654640493,-624.5,0.00020683,3]
[350149315,1737654640502,-250062.65537958,0.000219,2]
[350149318,1737654640514,-49143.80282835,0.000219,2]
[350149320,1737654640526,-4448.60941327,0.000219,2]
[350149322,1737654640537,-7513.93396773,0.000219,2]
[350149324,1737654640549,-3074.07601306,0.000219,2]
[350149598,1737654643979,-1525.391851,0.000219,2]
[350149599,1737654643992,-648.84439153,0.000219,2]
[350149600,1737654644005,-12617.35359356,0.000219,2]
[350149791,1737654785245,400.0,0.00013973,2]
[350149811,1737655721554,400.0,0.00013973,2]
[350149812,1737655758122,-195.292086,0.00017454,2]
[350149813,1737655758146,-195.292086,0.0001763,2]
[350149814,1737655758168,-195.292086,0.00017808,2]
[350149845,1737655832771,-239.55786132,0.00018711,2]
[350149846,1737655832782,-760.44213868,0.000189,2]
[350149847,1737655832814,-293.95736868,0.000189,2]
[350149848,1737655832823,-446.16987221,0.00019078,2]
[350149849,1737655832832,-300.0,0.00019177,2]
[350149850,1737655832842,-500.0,0.00019178,2]
[350149851,1737655832851,-197.02498809,0.00019178,2]
[350149852,1737655832862,-500.0,0.00019178,2]
[350149853,1737655832873,-280.44625145,0.00019178,2]
[350149854,1737655832882,-434.17084414,0.00019178,2]
[350149855,1737655832891,-500.0,0.00019178,2]
[350149856,1737655832902,-500.0,0.00019178,2]
[350149857,1737655832913,-500.0,0.00019178,2]
[350149858,1737655832923,-500.0,0.00019178,2]
[350149859,1737655832932,-500.0,0.00019178,2]
[350149860,1737655832942,-500.0,0.00019178,2]
[350149861,1737655832950,-500.0,0.00019178,2]
[350149862,1737655832959,-500.0,0.00019178,2]
[350149863,1737655832969,-500.0,0.00019178,2]
[350149864,1737655832979,-500.0,0.00019178,2]
[350149865,1737655832989,-500.0,0.00019178,2]
[350149866,1737655832999,-521.72516624,0.00019178,2]
[350149867,1737655833008,-500.0,0.00019178,2]
[350149868,1737655833017,-608.78,0.00019178,2]
[350149869,1737655833026,-500.0,0.00019178,2]
[350149870,1737655833035,-500.0,0.00019178,2]
[350149871,1737655833044,-552.4095296,0.00019178,2]
[350149872,1737655833053,-580.46,0.00019178,2]
[350149873,1737655833063,-500.0,0.00019178,2]
[350149874,1737655833072,-1563.66,0.00019178,2]
[350149875,1737655833082,-500.0,0.00019178,2]
[350149876,1737655833092,-500.0,0.00019178,2]
[350149877,1737655833102,-500.0,0.00019178,2]
[350149878,1737655833112,-500.0,0.00019178,2]
[350149879,1737655833121,-500.0,0.00019178,2]
[350149880,1737655833131,-500.0,0.00019178,2]
[350149881,1737655833141,-500.0,0.00019178,2]
[350149882,1737655833151,-500.0,0.00019178,2]
[350149883,1737655833160,-259.54779909,0.00019178,2]
[350149884,1737655833170,-500.0,0.00019178,2]
[350149885,1737655833180,-500.0,0.00019178,2]
[350149886,1737655833190,-500.0,0.00019178,2]
[350149887,1737655833200,-500.0,0.00019178,2]
[350149888,1737655833210,-500.0,0.00019178,2]
[350149889,1737655833219,-500.0,0.00019178,2]
[350149890,1737655833233,-186.93177399,0.00019178,2]
[350149891,1737655833242,-500.0,0.00019178,2]
[350149892,1737655833252,-615.2,0.00019178,2]
[350149893,1737655833264,-500.0,0.00019178,2]
[350149894,1737655833273,-500.0,0.00019178,2]
[350149895,1737655833283,-500.0,0.00019178,2]
[350149896,1737655833293,-500.0,0.00019178,2]
[350149897,1737655833303,-500.0,0.00019178,2]
[350149898,1737655833312,-461.57698612,0.00019178,2]
[350149899,1737655833322,-500.0,0.00019178,2]
[350149900,1737655833332,-974.68,0.00019178,2]
[350149901,1737655833343,-500.0,0.00019178,2]
[350149902,1737655833354,-500.0,0.00019178,2]
[350149903,1737655833363,-500.0,0.00019178,2]
[350149904,1737655833373,-500.0,0.00019178,2]
[350149905,1737655833383,-500.0,0.00019178,2]
[350149906,1737655833392,-500.0,0.00019178,2]
[350149907,1737655833401,-500.0,0.00019178,2]
[350149908,1737655833411,-500.0,0.00019178,2]
[350149909,1737655833421,-510.78865784,0.00019178,2]
[350149910,1737655833430,-500.0,0.00019178,2]
[350149911,1737655833440,-500.0,0.00019178,2]
[350149912,1737655833449,-500.0,0.00019178,2]
[350149913,1737655833458,-500.0,0.00019178,2]
[350149914,1737655833467,-514.67,0.00019178,2]
[350149915,1737655833479,-500.0,0.00019178,2]
[350149916,1737655833488,-500.0,0.00019178,2]
[350149917,1737655833498,-500.0,0.00019178,2]
[350149918,1737655833615,-500.0,0.00019178,2]
[350149919,1737655833631,-500.0,0.00019178,2]
[350149920,1737655833641,-500.0,0.00019178,2]
[350149921,1737655833651,-500.0,0.00019178,2]
[350149922,1737655833661,-500.0,0.00019178,2]
[350149923,1737655833671,-500.0,0.00019178,2]
[350149924,1737655833680,-500.0,0.00019178,2]
[350149925,1737655833690,-8110.03,0.00019178,2]
[350149926,1737655833699,-645.25699983,0.00019178,2]
[350149927,1737655833709,-379.17032955,0.00019178,2]
[350149928,1737655833719,-500.0,0.00019178,2]
[350149929,1737655833730,-500.0,0.00019178,2]
[350149930,1737655833740,-500.0,0.00019178,2]
[350149931,1737655833750,-500.0,0.00019178,2]
[350149932,1737655833760,-500.0,0.00019178,2]
[350149933,1737655833769,-500.0,0.00019178,2]
[350149934,1737655833779,-167.100176,0.00019178,2]
[350149935,1737655833789,-439.37706091,0.00019212,2]
[350149936,1737655833799,-500.0,0.00019311,3]
[350149937,1737655833808,-500.0,0.00019311,3]
[350149938,1737655833818,-500.0,0.00019311,3]
[350149939,1737655833827,-500.0,0.00019311,3]
[350149940,1737655833837,-500.0,0.00019311,3]
[350149941,1737655833846,-690.87,0.00019311,3]
[350149942,1737655833856,-500.0,0.00019311,3]
[350149943,1737655833865,-515.72813484,0.00019311,3]
[350149944,1737655833875,-1440.54,0.00019311,3]
[350149945,1737655833884,-519.42,0.00019311,3]
[350149946,1737655833893,-500.0,0.00019311,3]
[350149947,1737655833904,-500.0,0.00019311,3]
[350149948,1737655833913,-783.83,0.00019311,3]
[350149949,1737655833923,-500.0,0.00019311,3]
[350149950,1737655833932,-500.0,0.00019311,3]
[350149951,1737655833942,-500.0,0.00019311,3]
[350149952,1737655833951,-500.0,0.00019311,3]
[350149953,1737655833960,-500.0,0.00019311,3]
[350149954,1737655833970,-500.0,0.00019311,3]
[350149955,1737655833980,-500.0,0.00019311,3]
[350149956,1737655833990,-500.0,0.00019311,3]
[350149957,1737655833999,-500.0,0.00019311,3]
[350149958,1737655834009,-500.0,0.00019312,3]
[350149959,1737655834019,-500.0,0.00019312,3]
[350149960,1737655834028,-500.0,0.00019312,3]
[350149961,1737655834038,-500.0,0.00019312,3]
[350149962,1737655834047,-500.0,0.00019312,3]
[350149963,1737655834056,-500.0,0.00019312,3]
[350149964,1737655834066,-500.0,0.00019312,3]
[350149965,1737655834075,-500.0,0.00019312,3]
[350149966,1737655834085,-602.41196835,0.00019312,3]
[350149967,1737655834095,-500.0,0.00019312,3]
[350149968,1737655834105,-500.0,0.00019312,3]
[350149969,1737655834114,-500.0,0.00019312,3]
[350149970,1737655834124,-500.0,0.00019312,3]
[350149971,1737655834133,-500.0,0.00019312,3]
[350149972,1737655834143,-500.0,0.00019312,3]
[350149973,1737655834153,-500.0,0.00019312,3]
[350149974,1737655834162,-500.0,0.00019312,3]
[350149975,1737655834172,-500.0,0.00019312,3]
[350149976,1737655834182,-500.18796554,0.00019312,3]
[350149977,1737655834192,-500.0,0.00019312,3]
[350149978,1737655834201,-501.05930482,0.00019312,3]
[350149979,1737655834211,-500.0,0.00019312,3]
[350149980,1737655834221,-500.0,0.00019312,3]
[350149981,1737655834231,-500.0,0.00019312,3]
[350149982,1737655834240,-500.0,0.00019312,3]
[350149983,1737655834250,-500.0,0.00019312,3]
[350149984,1737655834261,-500.0,0.00019312,3]
[350149985,1737655834271,-500.0,0.00019312,3]
[350149986,1737655834281,-500.0,0.00019312,3]
[350149987,1737655834290,-500.0,0.00019312,3]
[350149988,1737655834302,-500.0,0.00019312,3]
[350149989,1737655834312,-500.0,0.00019312,3]
[350149990,1737655834321,-503.1017637,0.00019312,3]
[350149991,1737655834331,-500.0,0.00019312,3]
[350149992,1737655834341,-500.0,0.00019312,3]
[350149993,1737655834352,-500.0,0.00019312,3]
[350149994,1737655834363,-500.0,0.00019312,3]
[350149995,1737655834373,-500.0,0.00019312,3]
[350149996,1737655834383,-504.19524353,0.00019312,3]
[350149997,1737655834392,-500.0,0.00019312,3]
[350149998,1737655834402,-500.0,0.00019312,3]
[350149999,1737655834412,-500.0,0.00019312,3]
[350150000,1737655834422,-500.0,0.00019312,3]
[350150001,1737655834432,-500.0,0.00019312,3]
[350150002,1737655834442,-500.0,0.00019312,3]
[350150003,1737655834452,-500.0,0.00019312,3]
[350150004,1737655834462,-500.0,0.00019312,3]
[350150005,1737655834471,-500.0,0.00019312,3]
[350150006,1737655834482,-500.0,0.00019312,3]
[350150007,1737655834491,-500.0,0.00019312,7]
[350150008,1737655834500,-500.0,0.00019312,3]
[350150009,1737655834510,-500.0,0.00019313,3]
[350150010,1737655834520,-500.0,0.00019314,3]
[350150011,1737655834529,-500.0,0.00019314,3]
[350150012,1737655834539,-500.0,0.00019314,3]
[350150013,1737655834548,-2082.82,0.00019314,3]
[350150014,1737655834557,-500.0,0.00019314,3]
[350150015,1737655834568,-500.0,0.00019314,3]
[350150016,1737655834578,-3012.63,0.00019314,3]
[350150017,1737655834587,-500.0,0.00019314,3]
[350150018,1737655834597,-500.0,0.00019315,3]
[350150019,1737655834606,-500.0,0.00019315,3]
[350150020,1737655834615,-537.74628432,0.00019315,3]
[350150021,1737655834625,-534.38206939,0.00019315,3]
[350150022,1737655834636,-635.25554884,0.00019315,3]
[350150023,1737655834647,-264.03311846,0.00019315,3]
[350150024,1737655834656,-500.0,0.00019315,3]
[350150025,1737655834666,-267.89,0.00019315,3]
[350150026,1737655834675,-580.46,0.00019315,3]
[350150027,1737655834684,-500.0,0.00019315,3]
[350150028,1737655834695,-1563.66,0.00019315,3]
[350150029,1737655834705,-500.0,0.00019315,3]
[350150030,1737655834714,-541.00479234,0.00019315,3]
[350150031,1737655834723,-500.0,0.00019315,3]
[350150032,1737655834734,-500.0,0.00019315,3]
[350150033,1737655834744,-500.0,0.00019315,3]
[350150034,1737655834754,-500.0,0.00019315,3]
[350150035,1737655834763,-500.0,0.00019315,3]
[350150036,1737655834772,-500.0,0.00019315,3]
[350150037,1737655834782,-500.0,0.00019315,3]
[350150038,1737655834791,-500.0,0.00019315,3]
[350150039,1737655834801,-615.2,0.00019315,3]
[350150040,1737655834811,-500.0,0.00019315,3]
[350150041,1737655834820,-500.0,0.00019315,3]
[350150042,1737655834829,-500.0,0.00019315,3]
[350150043,1737655834838,-500.0,0.00019315,3]
[350150044,1737655834848,-500.0,0.00019315,3]
[350150045,1737655834857,-974.68,0.00019315,3]
[350150046,1737655834867,-500.0,0.00019315,3]
[350150047,1737655834876,-500.0,0.00019315,3]
[350150048,1737655834885,-500.0,0.00019315,3]
[350150049,1737655834895,-500.0,0.00019315,3]
[350150050,1737655834905,-500.0,0.00019315,3]
[350150051,1737655834915,-500.0,0.00019315,3]
[350150052,1737655834924,-500.0,0.00019315,3]
[350150053,1737655834934,-500.0,0.00019315,3]
[350150054,1737655834943,-500.0,0.00019315,3]
[350150055,1737655834953,-500.0,0.00019315,3]
[350150056,1737655834963,-514.67,0.00019315,3]
[350150057,1737655834972,-241.68578211,0.00019315,3]
[350150058,1737655834984,-500.0,0.00019315,3]
[350150059,1737655834993,-500.0,0.00019315,3]
[350150060,1737655835003,-500.0,0.00019315,3]
[350150061,1737655835013,-500.0,0.00019315,3]
[350150062,1737655835022,-500.0,0.00019315,3]
[350150063,1737655835033,-8110.03,0.00019315,3]
[350150064,1737655835042,-500.0,0.00019315,3]
[350150065,1737655835052,-517.46056264,0.00019315,3]
[350150066,1737655835061,-500.0,0.00019315,3]
[350150067,1737655835070,-490.08645015,0.00019315,3]
[350150068,1737655835080,-500.0,0.00019315,3]
[350150069,1737655835089,-439.37706091,0.00019418,2]
[350150070,1737655835098,-500.0,0.00019448,3]
[350150071,1737655835108,-500.0,0.00019448,3]
[350150072,1737655835117,-500.0,0.00019448,3]
[350150073,1737655835126,-690.87,0.00019448,3]
[350150074,1737655835135,-500.0,0.00019448,3]
[350150075,1737655835145,-1440.54,0.00019448,3]
[350150076,1737655835155,-519.42,0.00019448,3]
[350150077,1737655835164,-500.0,0.00019448,3]
[350150078,1737655835173,-783.83,0.00019448,3]
[350150079,1737655835183,-500.0,0.00019448,3]
[350150080,1737655835193,-500.0,0.00019448,3]
[350150081,1737655835203,-604.71202485,0.00019448,3]
[350150082,1737655835212,-500.0,0.00019448,3]
[350150083,1737655835222,-500.0,0.00019448,3]
[350150084,1737655835233,-574.44526977,0.00019448,3]
[350150085,1737655835243,-500.0,0.00019448,3]
[350150086,1737655835257,-517.13008383,0.00019448,3]
[350150087,1737655835266,-500.0,0.00019448,3]
[350150088,1737655835276,-500.0,0.00019449,3]
[350150089,1737655835285,-500.0,0.00019449,3]
[350150090,1737655835297,-500.0,0.00019449,3]
[350150091,1737655835306,-500.0,0.00019449,3]
[350150092,1737655835316,-500.0,0.00019449,3]
[350150093,1737655835326,-500.0,0.00019449,3]
[350150094,1737655835336,-500.0,0.00019449,3]
[350150095,1737655835345,-500.0,0.00019449,3]
[350150096,1737655835355,-500.0,0.00019449,3]
[350150097,1737655835366,-500.0,0.00019449,3]
[350150098,1737655835376,-500.0,0.00019449,3]
[350150099,1737655835385,-258.75745228,0.00019449,3]
[350150100,1737655835395,-500.0,0.00019449,3]
[350150101,1737655835405,-500.0,0.00019449,3]
[350150102,1737655835414,-500.0,0.00019449,3]
[350150103,1737655835424,-557.34060511,0.00019449,3]
[350150104,1737655835433,-500.0,0.00019449,3]
[350150105,1737655835443,-500.0,0.00019449,3]
[350150106,1737655835454,-500.0,0.00019449,3]
[350150107,1737655835463,-242.59931682,0.00019449,3]
[350150108,1737655835472,-500.0,0.0001945,3]
[350150109,1737655835483,-500.0,0.0001945,3]
[350150110,1737655835493,-500.0,0.00019451,3]
[350150111,1737655835502,-500.0,0.00019451,3]
[350150112,1737655835512,-2082.82,0.00019451,3]
[350150113,1737655835521,-500.0,0.00019451,3]
[350150114,1737655835531,-3012.63,0.00019451,3]
[350150115,1737655835540,-500.0,0.00019451,3]
[350150116,1737655835550,-500.0,0.00019452,3]
[350150117,1737655835560,-580.46,0.00019452,3]
[350150118,1737655835569,-500.0,0.00019452,3]
[350150119,1737655835579,-1563.66,0.00019452,3]
[350150120,1737655835588,-500.0,0.00019452,3]
[350150121,1737655835598,-265.38134964,0.00019452,3]
[350150122,1737655835607,-350.0,0.00019452,3]
[350150123,1737655835617,-500.0,0.00019452,3]
[350150124,1737655835629,-500.0,0.00019452,3]
[350150125,1737655835639,-618.64597035,0.00019452,3]